lending/lending_fUSD_20240401
["ID","MTS","AMOUNT","RATE_DAILY","PERIOD"]
[321182862,1711951847343,-500.0,0.00055616,120]
[321182863,1711951847352,-500.0,0.00055616,120]
[321182864,1711951847363,-1295.33,0.00055616,120]
[321182865,1711951847372,-2937.94,0.00055616,120]
[321182866,1711951847382,-500.0,0.00055616,120]
[321182867,1711951847392,-1995.86,0.00055616,120]
[321182868,1711951847402,-500.0,0.00055616,120]
[321182869,1711951847412,-598.43,0.00055616,120]
[321182870,1711951847421,-500.0,0.00055616,120]
[321182871,1711951847431,-500.0,0.00055616,120]
[321182872,1711951847443,-1598.44,0.00055616,120]
[321182873,1711951847452,-500.0,0.00055616,120]
[321182874,1711951847462,-500.0,0.00055616,120]
[321182875,1711951847472,-500.0,0.00055616,120]
[321182876,1711951847482,-1620.39,0.00055616,120]
[321182877,1711951847491,-500.0,0.00055616,120]
[321182878,1711951847501,-500.0,0.00055616,120]
[321182879,1711951847512,-1182.42,0.00055616,120]
[321182880,1711951847521,-500.0,0.00055616,120]
[321182881,1711951847532,-500.0,0.00055616,120]
[321182882,1711951847542,-500.0,0.00055616,120]
[321182883,1711951847552,-500.0,0.00055616,120]
[321182884,1711951847561,-500.0,0.00055616,120]
[321182885,1711951847576,-1108.51,0.00055616,120]
[321182886,1711951847586,-500.0,0.00055616,120]
[321182887,1711951847596,-2166.26,0.00055616,120]
[321182888,1711951847605,-500.0,0.00055616,120]
[321182889,1711951847615,-500.0,0.00055616,120]
[321182890,1711951847624,-500.0,0.00055616,120]
[321182891,1711951847634,-760.91,0.00055616,120]
[321182892,1711951847644,-500.0,0.00055616,120]
[321182893,1711951847653,-500.0,0.00055616,120]
[321182894,1711951847663,-500.0,0.00055616,120]
[321182895,1711951847673,-1208.42,0.00055616,120]
[321182896,1711951847684,-500.0,0.00055616,120]
[321182897,1711951847694,-500.0,0.00055616,120]
[321182898,1711951847703,-500.0,0.00055616,120]
[321182899,1711951847714,-2832.74,0.00055616,120]
[321182900,1711951847723,-500.0,0.00055616,120]
[321182901,1711951847732,-500.0,0.00055616,120]
[321182902,1711951847742,-651.14,0.00055616,120]
[321182903,1711951847752,-500.0,0.00055616,120]
[321182904,1711951847762,-734.88,0.00055616,120]
[321182905,1711951847772,-500.0,0.00055616,120]
[321182906,1711951847782,-500.0,0.00055616,120]
[321182907,1711951847792,-1257.16,0.00055616,120]
[321182908,1711951847802,-741.06,0.00055616,120]
[321182909,1711951847812,-1699.92,0.00055616,120]
[321182910,1711951847829,-1993.44,0.00055616,120]
[321182911,1711951847839,-500.0,0.00055616,120]
[321182912,1711951847849,-500.0,0.00055616,120]
[321182913,1711951847859,-3642.1,0.00055616,120]
[321182914,1711951847869,-7257.52,0.00055616,120]
[321182915,1711951847879,-314.70146879,0.00055616,120]
[321182916,1711951847890,-500.0,0.00055616,120]
[321182917,1711951847900,-330.14152597,0.00055616,120]
[321182918,1711951847910,-902.57,0.00055616,21]
[321182919,1711951847920,-500.0,0.00055616,120]
[321182920,1711951847929,-500.0,0.00055616,120]
[321182921,1711951847938,-500.0,0.00055616,120]
[321182922,1711951847948,-500.0,0.00055616,120]
[321182923,1711951847958,-500.0,0.00055616,120]
[321182924,1711951847967,-500.0,0.00055616,120]
[321182925,1711951847976,-2173.88,0.00055616,120]
[321182926,1711951847986,-500.0,0.00055616,120]
[321182927,1711951847995,-500.0,0.00055616,120]
[321182928,1711951848005,-500.0,0.00055616,120]
[321182929,1711951848014,-327.99173429,0.00055616,120]
[321182930,1711951848024,-156.96,0.00055751,120]
[321182931,1711951848034,-500.0,0.0005589,120]
[321182932,1711951848044,-500.0,0.0005589,120]
[321182933,1711951848053,-500.0,0.0005589,120]
[321182934,1711951848063,-500.0,0.0005589,120]
[321182935,1711951848076,-500.0,0.0005589,120]
[321182936,1711951848086,-500.0,0.0005589,120]
[321182937,1711951848096,-500.0,0.0005589,120]
[321182938,1711951848106,-203.26,0.0005589,120]
[321182939,1711951848116,-500.0,0.0005589,120]
[321182940,1711951848125,-500.0,0.0005589,120]
[321182941,1711951848134,-500.0,0.0005589,120]
[321182942,1711951848144,-500.0,0.0005589,120]
[321182943,1711951848154,-500.0,0.0005589,120]
[321182944,1711951848163,-500.0,0.0005589,120]
[321182945,1711951848173,-500.0,0.0005589,120]
[321182946,1711951848184,-623.7,0.0005589,120]
[321182947,1711951848193,-775.42,0.0005589,120]
[321182948,1711951848202,-500.0,0.0005589,120]
[321182949,1711951848212,-768.77,0.0005589,120]
[321182950,1711951848221,-1125.53,0.0005589,120]
[321182951,1711951848230,-704.11,0.0005589,120]
[321182952,1711951848239,-3905.3,0.0005589,120]
[321182953,1711951848249,-1527.15,0.0005589,120]
[321182954,1711951848258,-500.0,0.0005589,120]
[321182955,1711951848267,-500.0,0.0005589,120]
[321182956,1711951848276,-500.0,0.0005589,120]
[321182957,1711951848285,-2316.33,0.0005589,120]
[321182958,1711951848294,-165.60680527,0.0005589,120]
[321182959,1711951848303,-500.0,0.0005589,120]
[321182960,1711951848312,-844.99,0.0005589,120]
[321182961,1711951848324,-500.0,0.0005589,120]
[321182962,1711951848333,-500.0,0.0005589,120]
[321182963,1711951848343,-500.0,0.0005589,120]
[321182964,1711951848352,-885.7,0.0005589,120]
[321182965,1711951848361,-500.0,0.0005589,120]
[321182966,1711951848371,-500.0,0.0005589,120]
[321182967,1711951848381,-500.0,0.0005589,120]
[321182968,1711951848390,-581.19,0.0005589,120]
[321182969,1711951848400,-1295.33,0.0005589,120]
[321182970,1711951848411,-2937.94,0.0005589,120]
[321182971,1711951848421,-500.0,0.0005589,120]
[321182972,1711951848431,-1995.86,0.0005589,120]
[321182973,1711951848442,-500.0,0.0005589,120]
[321182974,1711951848451,-598.43,0.0005589,120]
[321182975,1711951848490,-500.0,0.0005589,120]
[321182976,1711951848499,-500.0,0.0005589,120]
[321182977,1711951848508,-1598.44,0.0005589,120]
[321182978,1711951848519,-500.0,0.0005589,120]
[321182979,1711951848528,-500.0,0.0005589,120]
[321182980,1711951848537,-500.0,0.0005589,120]
[321182981,1711951848546,-1620.39,0.0005589,120]
[321182982,1711951848555,-500.0,0.0005589,120]
[321182983,1711951848563,-500.0,0.0005589,120]
[321182984,1711951848574,-1182.42,0.0005589,120]
[321182985,1711951848583,-500.0,0.0005589,120]
[321182986,1711951848592,-500.0,0.0005589,120]
[321182987,1711951848601,-500.0,0.0005589,120]
[321182988,1711951848610,-500.0,0.0005589,120]
[321182989,1711951848619,-500.0,0.0005589,120]
[321182990,1711951848628,-1108.51,0.0005589,120]
[321182991,1711951848637,-500.0,0.0005589,120]
[321182992,1711951848647,-2166.26,0.0005589,120]
[321182993,1711951848657,-500.0,0.0005589,120]
[321182994,1711951848666,-500.0,0.0005589,120]
[321182995,1711951848675,-500.0,0.0005589,120]
[321182996,1711951848684,-760.91,0.0005589,120]
[321182997,1711951848694,-500.0,0.0005589,120]
[321182998,1711951848704,-500.0,0.0005589,120]
[321182999,1711951848713,-500.0,0.0005589,120]
[321183000,1711951848722,-1208.42,0.0005589,120]
[321183001,1711951848732,-500.0,0.0005589,120]
[321183002,1711951848741,-500.0,0.0005589,120]
[321183003,1711951848750,-500.0,0.0005589,120]
[321183004,1711951848760,-2832.74,0.0005589,120]
[321183005,1711951848770,-500.0,0.0005589,120]
[321183006,1711951848779,-500.0,0.0005589,120]
[321183007,1711951848789,-651.14,0.0005589,120]
[321183008,1711951848799,-500.0,0.0005589,120]
[321183009,1711951848808,-734.88,0.0005589,120]
[321183010,1711951848819,-500.0,0.0005589,120]
[321183011,1711951848830,-500.0,0.0005589,120]
[321183012,1711951848839,-1257.16,0.0005589,120]
[321183013,1711951848849,-741.06,0.0005589,120]
[321183014,1711951848859,-1699.92,0.0005589,120]
[321183015,1711951848869,-1993.44,0.0005589,120]
[321183016,1711951848878,-500.0,0.0005589,120]
[321183017,1711951848888,-500.0,0.0005589,120]
[321183018,1711951848899,-3642.1,0.0005589,120]
[321183019,1711951848909,-7257.52,0.0005589,120]
[321183020,1711951848918,-500.0,0.0005589,120]
[321183021,1711951848928,-902.57,0.0005589,21]
[321183022,1711951848938,-500.0,0.0005589,120]
[321183023,1711951848947,-500.0,0.0005589,120]
[321183024,1711951848957,-500.0,0.0005589,120]
[321183025,1711951848967,-500.0,0.0005589,120]
[321183026,1711951848976,-500.0,0.0005589,120]
[321183027,1711951848985,-500.0,0.0005589,120]
[321183028,1711951848995,-2173.88,0.0005589,120]
[321183029,1711951849005,-500.0,0.0005589,120]
[321183030,1711951849016,-582.01106087,0.0005589,120]
[321183031,1711951849025,-500.0,0.0005589,120]
[321183032,1711951849035,-154.11,0.000559,8]
[321183033,1711951849045,-154.11,0.000559,8]
[321183034,1711951849055,-167.69,0.00056,120]
[321183035,1711951849068,-260.0,0.00056,120]
[321183036,1711951849077,-334.92,0.00056164,120]
[321183037,1711951849087,-500.0,0.00056164,120]
[321183038,1711951849097,-500.0,0.00056164,120]
[321183039,1711951849107,-500.0,0.00056164,120]
[321183040,1711951849116,-500.0,0.00056164,120]
[321183041,1711951849126,-500.0,0.00056164,120]
[321183042,1711951849134,-500.0,0.00056164,120]
[321183043,1711951849144,-488.77541696,0.00056164,120]
[321183044,1711951849153,-500.0,0.00056164,120]
[321183045,1711951849162,-500.0,0.00056164,120]
[321183046,1711951849172,-500.0,0.00056164,120]
[321183047,1711951849181,-500.0,0.00056164,120]
[321183048,1711951849191,-500.0,0.00056164,120]
[321183049,1711951849200,-500.0,0.00056164,120]
[321183050,1711951849210,-623.7,0.00056164,120]
[321183051,1711951849219,-775.42,0.00056164,120]
[321183052,1711951849228,-500.0,0.00056164,120]
[321183053,1711951849237,-768.77,0.00056164,120]
[321183054,1711951849246,-1125.53,0.00056164,120]
[321183055,1711951849256,-704.11,0.00056164,120]
[321183056,1711951849265,-3905.3,0.00056164,120]
[321183057,1711951849275,-1527.15,0.00056164,120]
[321183058,1711951849285,-299.59,0.00056164,120]
[321183059,1711951849294,-500.0,0.00056164,120]
[321183060,1711951849303,-500.0,0.00056164,120]
[321183061,1711951849312,-2316.33,0.00056164,120]
[321183062,1711951849325,-500.0,0.00056164,120]
[321183063,1711951849334,-844.99,0.00056164,120]
[321183064,1711951849343,-500.0,0.00056164,120]
[321183065,1711951849352,-500.0,0.00056164,120]
[321183066,1711951849361,-500.0,0.00056164,120]
[321183067,1711951849370,-885.7,0.00056164,120]
[321183068,1711951849379,-500.0,0.00056164,120]
[321183069,1711951849389,-500.0,0.00056164,120]
[321183070,1711951849398,-500.0,0.00056164,120]
[321183071,1711951849408,-1295.33,0.00056164,120]
[321183072,1711951849419,-2937.94,0.00056164,120]
[321183073,1711951849428,-500.0,0.00056164,120]
[321183074,1711951849439,-1995.86,0.00056164,120]
[321183075,1711951849448,-500.0,0.00056164,120]
[321183076,1711951849458,-598.43,0.00056164,120]
[321183077,1711951849468,-500.0,0.00056164,120]
[321183078,1711951849477,-500.0,0.00056164,120]
[321183079,1711951849486,-1598.44,0.00056164,120]
[321183080,1711951849496,-500.0,0.00056164,120]
[321183081,1711951849505,-500.0,0.00056164,120]
[321183082,1711951849515,-500.0,0.00056164,120]
[321183083,1711951849525,-1620.39,0.00056164,120]
[321183084,1711951849534,-500.0,0.00056164,120]
[321183085,1711951849543,-500.0,0.00056164,120]
[321183086,1711951849552,-1182.42,0.00056164,120]
[321183087,1711951849562,-500.0,0.00056164,120]
[321183088,1711951849575,-500.0,0.00056164,120]
[321183089,1711951849584,-500.0,0.00056164,120]
[321183090,1711951849594,-500.0,0.00056164,120]
[321183091,1711951849603,-500.0,0.00056164,120]
[321183092,1711951849613,-1108.51,0.00056164,120]
[321183093,1711951849622,-500.0,0.00056164,120]
[321183094,1711951849632,-2166.26,0.00056164,120]
[321183095,1711951849641,-500.0,0.00056164,120]
[321183096,1711951849650,-500.0,0.00056164,120]
[321183097,1711951849659,-500.0,0.00056164,120]
[321183098,1711951849668,-760.91,0.00056164,120]
[321183099,1711951849677,-500.0,0.00056164,120]
[321183100,1711951849687,-500.0,0.00056164,120]
[321183101,1711951849696,-500.0,0.00056164,120]
[321183102,1711951849705,-1208.42,0.00056164,120]
[321183103,1711951849714,-500.0,0.00056164,120]
[321183104,1711951849724,-500.0,0.00056164,120]
[321183105,1711951849734,-500.0,0.00056164,120]
[321183106,1711951849744,-2832.74,0.00056164,120]
[321183107,1711951849754,-500.0,0.00056164,120]
[321183108,1711951849764,-500.0,0.00056164,120]
[321183109,1711951849773,-651.14,0.00056164,120]
[321183110,1711951849783,-500.0,0.00056164,120]
[321183111,1711951849792,-734.88,0.00056164,120]
[321183112,1711951849801,-500.0,0.00056164,120]
[321183113,1711951849810,-500.0,0.00056164,120]
[321183114,1711951849821,-1257.16,0.00056164,120]
[321183115,1711951849831,-741.06,0.00056164,120]
[321183116,1711951849841,-1699.92,0.00056164,120]
[321183117,1711951849850,-1993.44,0.00056164,120]
[321183118,1711951849860,-500.0,0.00056164,120]
[321183119,1711951849871,-500.0,0.00056164,120]
[321183120,1711951849881,-3642.1,0.00056164,120]
[321183121,1711951849891,-7257.52,0.00056164,120]
[321183122,1711951849902,-500.0,0.00056164,120]
[321183123,1711951849912,-902.57,0.00056164,21]
[321183124,1711951849922,-500.0,0.00056164,120]
[321183125,1711951849934,-500.0,0.00056164,120]
[321183126,1711951849943,-500.0,0.00056164,120]
[321183127,1711951849954,-500.0,0.00056164,120]
[321183128,1711951849963,-500.0,0.00056164,120]
[321183129,1711951849972,-500.0,0.00056164,120]
[321183130,1711951849982,-2173.88,0.00056164,120]
[321183131,1711951849992,-500.0,0.00056164,120]
[321183132,1711951850002,-500.0,0.00056164,120]
[321183133,1711951850012,-554.0,0.00056165,120]
[321183134,1711951850022,-556.0,0.00056165,120]
[321183135,1711951850032,-515.0,0.00056165,120]
[321183136,1711951850042,-164.25729466,0.0005625,14]
[321183137,1711951850051,-500.0,0.00056438,120]
[321183138,1711951850062,-500.0,0.00056438,120]
[321183139,1711951850075,-500.0,0.00056438,120]
[321183140,1711951850085,-602.24,0.00056438,120]
[321183141,1711951850095,-500.0,0.00056438,120]
[321183142,1711951850106,-500.0,0.00056438,120]
[321183143,1711951850116,-500.0,0.00056438,120]
[321183144,1711951850127,-500.0,0.00056438,120]
[321183145,1711951850137,-500.0,0.00056438,120]
[321183146,1711951850147,-500.0,0.00056438,120]
[321183147,1711951850157,-500.0,0.00056438,120]
[321183148,1711951850167,-500.0,0.00056438,120]
[321183149,1711951850177,-623.7,0.00056438,120]
[321183150,1711951850187,-775.42,0.00056438,120]
[321183151,1711951850197,-500.0,0.00056438,120]
[321183152,1711951850207,-768.77,0.00056438,120]
[321183153,1711951850217,-1125.53,0.00056438,120]
[321183154,1711951850226,-704.11,0.00056438,120]
[321183155,1711951850236,-3905.3,0.00056438,120]
[321183156,1711951850245,-1527.15,0.00056438,120]
[321183157,1711951850254,-500.0,0.00056438,120]
[321183158,1711951850264,-500.0,0.00056438,120]
[321183159,1711951850273,-2316.33,0.00056438,120]
[321183160,1711951850283,-500.0,0.00056438,120]
[321183161,1711951850292,-844.99,0.00056438,120]
[321183162,1711951850302,-500.0,0.00056438,120]
[321183163,1711951850311,-500.0,0.00056438,120]
[321183164,1711951850322,-500.0,0.00056438,120]
[321183165,1711951850331,-885.7,0.00056438,120]
[321183166,1711951850340,-500.0,0.00056438,120]
[321183167,1711951850350,-500.0,0.00056438,120]
[321183168,1711951850360,-500.0,0.00056438,120]
[321183169,1711951850370,-1295.33,0.00056438,120]
[321183170,1711951850379,-2937.94,0.00056438,120]
[321183171,1711951850389,-500.0,0.00056438,120]
[321183172,1711951850398,-1995.86,0.00056438,120]
[321183173,1711951850409,-500.0,0.00056438,120]
[321183174,1711951850418,-598.43,0.00056438,120]
[321183175,1711951850428,-500.0,0.00056438,120]
[321183176,1711951850438,-500.0,0.00056438,120]
[321183177,1711951850448,-1598.44,0.00056438,120]
[321183178,1711951850459,-500.0,0.00056438,120]
[321183179,1711951850468,-500.0,0.00056438,120]
[321183180,1711951850478,-500.0,0.00056438,120]
[321183181,1711951850487,-1620.39,0.00056438,120]
[321183182,1711951850498,-500.0,0.00056438,120]
[321183183,1711951850507,-500.0,0.00056438,120]
[321183184,1711951850517,-1182.42,0.00056438,120]
[321183185,1711951850527,-500.0,0.00056438,120]
[321183186,1711951850536,-500.0,0.00056438,120]
[321183187,1711951850546,-500.0,0.00056438,120]
[321183188,1711951850556,-500.0,0.00056438,120]
[321183189,1711951850565,-500.0,0.00056438,120]
[321183190,1711951850577,-500.0,0.00056438,120]
[321183191,1711951850586,-1108.51,0.00056438,120]
[321183192,1711951850597,-2166.26,0.00056438,120]
[321183193,1711951850607,-500.0,0.00056438,120]
[321183194,1711951850616,-500.0,0.00056438,120]
[321183195,1711951850627,-500.0,0.00056438,120]
[321183196,1711951850636,-760.91,0.00056438,120]
[321183197,1711951850645,-500.0,0.00056438,120]
[321183198,1711951850655,-500.0,0.00056438,120]
[321183199,1711951850664,-500.0,0.00056438,120]
[321183200,1711951850674,-1208.42,0.00056438,120]
[321183201,1711951850683,-500.0,0.00056438,120]
[321183202,1711951850693,-340.51,0.00056438,120]
[321183203,1711951850702,-500.0,0.00056438,120]
[321183204,1711951850712,-2832.74,0.00056438,120]
[321183205,1711951850722,-500.0,0.00056438,120]
[321183206,1711951850731,-500.0,0.00056438,120]
[321183207,1711951850740,-651.14,0.00056438,120]
[321183208,1711951850750,-500.0,0.00056438,120]
[321183209,1711951850760,-734.88,0.00056438,120]
[321183210,1711951850770,-500.0,0.00056438,120]
[321183211,1711951850780,-500.0,0.00056438,120]
[321183212,1711951850790,-1257.16,0.00056438,120]
[321183213,1711951850800,-741.06,0.00056438,120]
[321183214,1711951850810,-1699.92,0.00056438,120]
[321183215,1711951850822,-1993.44,0.00056438,120]
[321183216,1711951850832,-500.0,0.00056438,120]
[321183217,1711951850842,-500.0,0.00056438,120]
[321183218,1711951850851,-3642.1,0.00056438,120]
[321183219,1711951850861,-7257.52,0.00056438,120]
[321183220,1711951850872,-500.0,0.00056438,120]
[321183221,1711951850881,-902.57,0.00056438,21]
[321183222,1711951850891,-500.0,0.00056438,120]
[321183223,1711951850901,-500.0,0.00056438,120]
[321183224,1711951850911,-500.0,0.00056438,120]
[321183225,1711951850920,-300.26126479,0.00056438,120]
[321183226,1711951850930,-500.0,0.00056438,120]
[321183227,1711951850940,-500.0,0.00056438,120]
[321183228,1711951850951,-2173.88,0.00056438,120]
[321183229,1711951850961,-500.0,0.00056438,120]
[321183230,1711951850971,-500.0,0.00056438,120]
[321183231,1711951850980,-554.0,0.00056439,120]
[321183232,1711951850990,-556.0,0.00056439,120]
[321183233,1711951851000,-515.0,0.00056439,120]
[321183234,1711951851010,-343.09,0.00056701,2]
[321183235,1711951851020,-500.0,0.00056711,120]
[321183236,1711951851030,-500.0,0.00056712,120]
[321183237,1711951851040,-500.0,0.00056712,120]
[321183238,1711951851050,-500.0,0.00056712,120]
[321183239,1711951851060,-516.0,0.00056712,120]
[321183240,1711951851072,-500.0,0.00056712,120]
[321183241,1711951851081,-500.0,0.00056712,120]
[321183242,1711951851091,-500.0,0.00056712,120]
[321183243,1711951851100,-500.0,0.00056712,120]
[321183244,1711951851111,-500.0,0.00056712,120]
[321183245,1711951851120,-500.0,0.00056712,120]
[321183246,1711951851130,-500.0,0.00056712,120]
[321183247,1711951851140,-500.0,0.00056712,120]
[321183248,1711951851150,-623.7,0.00056712,120]
[321183249,1711951851160,-775.42,0.00056712,120]
[321183250,1711951851170,-500.0,0.00056712,120]
[321183251,1711951851180,-768.77,0.00056712,120]
[321183252,1711951851190,-1125.53,0.00056712,120]
[321183253,1711951851200,-704.11,0.00056712,120]
[321183254,1711951851210,-3905.3,0.00056712,120]
[321183255,1711951851220,-1527.15,0.00056712,120]
[321183256,1711951851230,-500.0,0.00056712,120]
[321183257,1711951851239,-500.0,0.00056712,120]
[321183258,1711951851250,-2316.33,0.00056712,120]
[321183259,1711951851260,-500.0,0.00056712,120]
[321183260,1711951851269,-844.99,0.00056712,120]
[321183261,1711951851280,-500.0,0.00056712,120]
[321183262,1711951851289,-242.48,0.00056712,120]
[321183263,1711951851299,-500.0,0.00056712,120]
[321183264,1711951851308,-885.7,0.00056712,120]
[321183265,1711951851320,-500.0,0.00056712,120]
[321183266,1711951851330,-500.0,0.00056712,120]
[321183267,1711951851339,-1295.33,0.00056712,120]
[321183268,1711951851349,-2937.94,0.00056712,120]
[321183269,1711951851358,-500.0,0.00056712,120]
[321183270,1711951851368,-1995.86,0.00056712,120]
[321183271,1711951851378,-500.0,0.00056712,120]
[321183272,1711951851388,-598.43,0.00056712,120]
[321183273,1711951851399,-505.74,0.00056712,120]
[321183274,1711951851410,-500.0,0.00056712,120]
[321183275,1711951851420,-1598.44,0.00056712,120]
[321183276,1711951851430,-500.0,0.00056712,120]
[321183277,1711951851441,-500.0,0.00056712,120]
[321183278,1711951851451,-500.0,0.00056712,120]
[321183279,1711951851463,-1620.39,0.00056712,120]
[321183280,1711951851473,-500.0,0.00056712,120]
[321183281,1711951851484,-500.0,0.00056712,120]
[321183282,1711951851494,-1182.42,0.00056712,120]
[321183283,1711951851505,-500.0,0.00056712,120]
[321183284,1711951851516,-500.0,0.00056712,120]
[321183285,1711951851527,-500.0,0.00056712,120]
[321183286,1711951851537,-628.83,0.00056712,120]
[321183287,1711951851547,-500.0,0.00056712,120]
[321183288,1711951851557,-500.0,0.00056712,120]
[321183289,1711951851572,-1108.51,0.00056712,120]
[321183290,1711951851581,-2166.26,0.00056712,120]
[321183291,1711951851591,-500.0,0.00056712,120]
[321183292,1711951851600,-500.0,0.00056712,120]
[321183293,1711951851611,-500.0,0.00056712,120]
[321183294,1711951851620,-760.91,0.00056712,120]
[321183295,1711951851630,-500.0,0.00056712,120]
[321183296,1711951851640,-500.0,0.00056712,120]
[321183297,1711951851650,-1208.42,0.00056712,120]
[321183298,1711951851661,-500.0,0.00056712,120]
[321183299,1711951851671,-500.0,0.00056712,120]
[321183300,1711951851682,-440.93,0.00056712,120]
[321183301,1711951851692,-2832.74,0.00056712,120]
[321183302,1711951851702,-647.91,0.00056712,120]
[321183303,1711951851713,-500.0,0.00056712,120]
[321183304,1711951851723,-651.14,0.00056712,120]
[321183305,1711951851732,-500.0,0.00056712,120]
[321183306,1711951851742,-734.88,0.00056712,120]
[321183307,1711951851752,-500.0,0.00056712,120]
[321183308,1711951851762,-500.0,0.00056712,120]
[321183309,1711951851772,-1257.16,0.00056712,120]
[321183310,1711951851782,-741.06,0.00056712,120]
[321183311,1711951851792,-1699.92,0.00056712,120]
[321183312,1711951851802,-1993.44,0.00056712,120]
[321183313,1711951851812,-500.0,0.00056712,120]
[321183314,1711951851825,-3642.1,0.00056712,120]
[321183315,1711951851835,-7257.52,0.00056712,120]
[321183316,1711951851845,-500.0,0.00056712,120]
[321183317,1711951851855,-902.57,0.00056712,21]
[321183318,1711951851866,-500.0,0.00056712,120]
[321183319,1711951851876,-500.0,0.00056712,120]
[321183320,1711951851886,-500.0,0.00056712,120]
[321183321,1711951851897,-500.0,0.00056712,120]
[321183322,1711951851908,-556.98,0.00056712,120]
[321183323,1711951851918,-2173.88,0.00056712,120]
[321183324,1711951851928,-500.0,0.00056712,120]
[321183325,1711951851938,-500.0,0.00056712,120]
[321183326,1711951851949,-2138.0,0.00056759,117]
[321183327,1711951851959,-4876.80276876,0.00056868,2]
[321183328,1711951851969,-2663.61287479,0.00056868,2]
[321183329,1711951851979,-305.15289483,0.0005689,120]
[321183330,1711951851989,-109658.81184927,0.00056986,36]
[321183331,1711951851999,-482.66990798,0.00056986,120]
[321183332,1711951852010,-500.0,0.00056986,120]
[321183333,1711951852147,-500.0,0.00056986,120]
[321183334,1711951852157,-378.53283525,0.00056986,120]
[321183335,1711951852167,-500.0,0.00056986,120]
[321183336,1711951852176,-500.0,0.00056986,120]
[321183337,1711951852186,-500.0,0.00056986,120]
[321183338,1711951852195,-500.0,0.00056986,120]
[321183339,1711951852204,-500.0,0.00056986,120]
[321183340,1711951852214,-500.0,0.00056986,120]
[321183341,1711951852223,-500.0,0.00056986,120]
[321183342,1711951852233,-623.7,0.00056986,120]
[321183343,1711951852242,-775.42,0.00056986,120]
[321183344,1711951852251,-500.0,0.00056986,120]
[321183345,1711951852260,-768.77,0.00056986,120]
[321183346,1711951852269,-1125.53,0.00056986,120]
[321183347,1711951852285,-704.11,0.00056986,120]
[321183348,1711951852294,-3905.3,0.00056986,120]
[321183349,1711951852303,-1527.15,0.00056986,120]
[321183350,1711951852312,-245.84,0.00056986,120]
[321183351,1711951852325,-500.0,0.00056986,120]
[321183352,1711951852334,-2316.33,0.00056986,120]
[321183353,1711951852343,-500.0,0.00056986,120]
[321183354,1711951852352,-844.99,0.00056986,120]
[321183355,1711951852361,-500.0,0.00056986,120]
[321183356,1711951852370,-500.0,0.00056986,120]
[321183357,1711951852380,-885.7,0.00056986,120]
[321183358,1711951852389,-500.0,0.00056986,120]
[321183359,1711951852398,-500.0,0.00056986,120]
[321183360,1711951852408,-1295.33,0.00056986,120]
[321183361,1711951852417,-2937.94,0.00056986,120]